fUST/lending_fUST_20240402
["ID","MTS","AMOUNT","RATE_DAILY","PERIOD"]
[321251369,1712026241085,-153.0,0.00041875,2]
[321251370,1712026241094,-324.5838289,0.00041875,2]
[321251373,1712026241104,-150.5,0.00041879,35]
[321251374,1712026241113,-151.0,0.00041887,7]
[321251376,1712026241123,-150.5,0.00041889,35]
[321251378,1712026241132,-500.0,0.00041894,31]
[321251379,1712026241142,-431.33154087,0.00041894,31]
[321251381,1712026241151,-500.0,0.00041894,31]
[321251383,1712026241161,-158.63245547,0.00041894,31]
[321251385,1712026241175,-664.84,0.00041894,7]
[321251387,1712026241185,-664.84,0.00041894,7]
[321251389,1712026241194,-664.84,0.00041894,7]
[321251391,1712026241204,-664.84,0.00041894,7]
[321251393,1712026241213,-664.84,0.00041894,7]
[321251395,1712026241222,-664.84,0.00041894,7]
[321251397,1712026241231,-664.84,0.00041894,7]
[321251399,1712026241240,-664.84,0.00041894,7]
[321251401,1712026241257,-664.84,0.00041894,7]
[321251403,1712026241267,-664.84,0.00041894,7]
[321251405,1712026241276,-255525.49739653,0.00041895,60]
[321251408,1712026241291,-264020.0,0.00041895,60]
[321251410,1712026241302,-5810.62296379,0.00041895,60]
[321251688,1712026244108,-274.69860454,0.00040779,2]
[321251700,1712026244227,-31.30139546,0.00040779,2]
[321251703,1712026244237,-166.666666,0.00041096,2]
[321251704,1712026244247,-13162.63193854,0.00041895,60]
[321251707,1712026244260,-7199.98079147,0.00041895,60]
[321251709,1712026244272,-338.0,0.00041895,60]
[321252255,1712026249587,-169.28430486,0.00035476,7]
[321252257,1712026249597,-550.00537045,0.00035476,7]
[321252259,1712026249607,-250.74341549,0.00036856,15]
[321252261,1712026249617,-931.6295,0.00038255,30]
[321252263,1712026249627,-3200.02394083,0.00041006,4]
[321252265,1712026249636,-319.0,0.00041007,2]
[321252267,1712026249647,-2228.00940186,0.00041894,4]
[321252269,1712026249656,-2251.82063992,0.00041895,60]
[321252272,1712026249668,-20100.0,0.00041895,60]
[321252274,1712026249684,-13359.15791645,0.00041895,60]
[321252297,1712026249906,-8156.80003059,0.00041895,60]
[321252300,1712026249925,-9478.97468769,0.00041895,60]
[321252757,1712026254582,444.06146851,0.0003662,50]
[321252875,1712026255717,-7778.68022078,0.00035,2]
[321252877,1712026255727,-356.05942962,0.00036855,7]
[321252879,1712026255736,-2513.98473286,0.00038254,4]
[321252882,1712026255746,-712.00517737,0.00041893,4]
[321252885,1712026255755,-155.01555651,0.00041893,4]
[321252888,1712026255764,-155.08950286,0.00041893,4]
[321252891,1712026255774,-95509.4160525,0.00041895,60]
[321252896,1712026255794,-9510.00000299,0.00041895,60]
[321252948,1712026256291,-155.52424488,0.00041893,4]
[321252950,1712026256301,-155.07290058,0.00041893,2]
[321252952,1712026256311,-1036.35393393,0.00041895,60]
[321252961,1712026256382,-480000.0,0.00041895,60]
[321253222,1712026259110,-1112.43216239,0.00041894,4]
[321253224,1712026259122,-2896.66458235,0.00041894,4]
[321253226,1712026259131,-3798.33541765,0.00041895,60]
[321253228,1712026259143,-345.71596745,0.00041895,60]
[321253897,1712026266948,2000.0,0.00021918,10]
[321254189,1712026279117,150.98490151,0.00032152,4]
[321254190,1712026279201,150.98490151,0.00031509,7]
[321254191,1712026279240,150.98490151,0.00030879,30]
[321254192,1712026279298,150.98490151,0.00030261,120]
[321254201,1712026310363,716.47892147,0.00030261,4]
[321254205,1712026317900,516.19278229,0.00030261,4]
[321254212,1712026322425,1011.161184,0.00030261,4]
[321254213,1712026323798,190.40333451,0.00030261,4]
[321254214,1712026324367,518.35666713,0.00030261,4]
[321254215,1712026333903,321.57881711,0.00030261,4]
[321254216,1712026335849,298.48145176,0.00030261,4]
[321254217,1712026336430,430.72036708,0.00030261,4]
[321254223,1712026364582,6095.157096,0.00032522,120]
[321254230,1712026436706,15439.25254001,0.0002978,10]
[321254239,1712026446983,5000.0,0.000367,58]
[321254245,1712026455274,5000.0,0.000367,58]
[321254247,1712026460775,377.68280881,0.0003,10]
[321254248,1712026463861,2832.86441364,0.000367,58]
[321254250,1712026469750,400.0,0.00012,7]
[321254254,1712026477232,2477.72132281,0.00021,2]
[321254255,1712026477265,2606.38882725,0.00021,2]
[321254256,1712026477748,8833.41733466,0.0003,120]
[321254257,1712026478053,9959.76549032,0.00021,2]
[321254259,1712026478903,1010.97813205,0.00025,2]
[321254260,1712026480041,43451.1240666,0.0003,7]
[321254273,1712026635532,10000.0,0.00031,2]
[321254275,1712026648608,10000.0,0.00033977,30]
[321254279,1712026683064,10000.0,0.00031,2]
[321254295,1712026840904,250.0,0.00030881,2]
[321254296,1712026859434,150.96980604,0.00031068,30]
[321254297,1712026866363,171.333637,0.00031013,120]
[321254298,1712026869368,4571.367822,0.00030766,120]
[321254299,1712026869578,4571.367822,0.00035894,120]
[321254300,1712026879483,-210.84831368,0.00031012,4]
[321254301,1712026879510,-154.98450155,0.00031012,4]
[321254302,1712026879535,-283.41526297,0.00031012,4]
[321254303,1712026879562,-171.333637,0.00031013,2]
[321254304,1712026879588,-154.98450155,0.00031701,4]
[321254305,1712026879613,-154.98450155,0.00031701,4]
[321254306,1712026879646,-150.96980604,0.00031702,7]
[321254307,1712026879673,-212.53232206,0.00031764,4]
[321254308,1712026879699,-5009.06120089,0.00031764,4]
[321254309,1712026879728,-444.97129573,0.00031765,4]
[321254310,1712026879756,-400.0,0.00031765,2]
[321254311,1712026879782,-400.0,0.00031765,2]
[321254312,1712026879810,-4985.65295938,0.00031766,4]
[321254313,1712026879836,-363.03730881,0.00031768,2]
[321254314,1712026879861,-180.0,0.00031768,2]
[321254315,1712026879892,-11723.22438879,0.00031769,2]
[321254316,1712026890587,-13176.77561121,0.00031769,2]
[321254317,1712026890614,-227.0394884,0.00032221,2]
[321254318,1712026890638,-183.24889,0.00032255,2]
[321254319,1712026890675,-150.96980604,0.00032349,4]
[321254320,1712026892358,212.53232206,0.00031768,4]
[321254321,1712026892468,244.02632428,0.00031768,4]
[321254322,1712026911962,10000.0,0.000325,10]
[321254333,1712027117305,805.40755801,0.000325,2]
[321254334,1712027117330,5238.12144199,0.000325,2]
[321254335,1712027174183,1736.99648668,0.00031877,2]
[321254343,1712027292549,10000.0,0.000325,2]
[321254345,1712027340389,2285.683911,0.00032731,120]
[321254423,1712027381423,169.6716747,0.00031495,2]
[321254475,1712027437062,250.0,0.00031755,2]
[321254499,1712027438979,-210.84831368,0.00032552,4]
[321254500,1712027438988,-283.41526297,0.00032553,4]
[321254501,1712027438998,-444.97129573,0.00032553,4]
[321254502,1712027439006,-183.24889,0.00032571,2]
[321254503,1712027439016,-380.0,0.00032722,2]
[321254504,1712027439026,-400.0,0.0003275,2]
[321254505,1712027439035,-400.0,0.0003275,2]
[321254506,1712027439047,-285.06658555,0.00032751,2]
[321254643,1712027444358,-24614.93341445,0.00032751,2]
[321254645,1712027444367,-5182.24806556,0.00032799,4]
[321254784,1712027475434,1157.99765778,0.00031877,2]
[321254788,1712027589664,10000.0,0.00033977,30]
[321254792,1712027777058,771.99843852,0.00030699,2]
[321254808,1712027924000,1714.262933,0.00032876,120]
[321254809,1712028078802,514.66562568,0.00031877,2]
[321254825,1712028155825,8911.68531916,0.00033,30]
[321254826,1712028170287,-1095.21015277,0.00037,120]
[321254827,1712028170332,-344.78984723,0.00037,120]
[321254828,1712028170353,-1095.21015277,0.0003707,31]
[321254829,1712028194270,-283.41526297,0.00032759,4]
[321254830,1712028194291,-246.6703141,0.0003276,2]
[321254831,1712028194313,-313.56267553,0.00032798,4]
[321254832,1712028194334,-2281.83624819,0.00032799,4]
[321254833,1712028194355,-536.97182049,0.00032806,4]
[321254834,1712028194375,-217.32817267,0.00033,4]
[321254835,1712028194397,-165.334667,0.00033005,6]
[321254836,1712028194418,-201.59697029,0.00033087,2]
[321254837,1712028194439,-400.0,0.00033096,2]
[321254838,1712028194462,-400.0,0.00033096,2]
[321254839,1712028194483,-185.0,0.00033097,2]
[321254840,1712028194507,-4668.28386876,0.00033097,2]
[321254841,1712028243988,901.9934852,0.00032181,2]
[321254842,1712028246848,159.48657023,0.00037,30]
[321254843,1712028380198,405.74922874,0.00031877,2]
[321254844,1712028428216,1285.697199,0.00032128,120]
[321254845,1712028428479,130.006078,0.00037483,120]
[321254846,1712028458491,-1155.691121,0.00037483,120]
[321254847,1712028471261,172.756235,0.00031814,2]
[321255064,1712028639957,-2556.36687305,0.00032641,4]
[321255065,1712028640029,-2452.69432784,0.00032641,4]
[321255066,1712028640038,-1373.76655116,0.00032641,4]
[321255091,1712028643255,-0.51657341,0.00032641,4]
[321255097,1712028705112,327.10935273,0.00032,2]
[321255099,1712028709302,-212.53232206,0.00032639,4]
[321255100,1712028709324,-210.84831368,0.0003264,4]
[321255101,1712028709344,-2800.02094822,0.00032645,4]
[321255102,1712028709366,-400.0,0.00032646,2]
[321255103,1712028709387,-400.0,0.00032646,2]
[321255104,1712028709407,-550.00537045,0.00032646,2]
[321255105,1712028709427,-169.28430486,0.00032646,2]
[321255106,1712028709447,-319.0,0.00032647,2]
[321255107,1712028709468,-2916.30874073,0.00032647,2]
[321255108,1712028776250,1613.7058529,0.00031899,2]
[321255109,1712028776355,1739.23452008,0.00031646,2]
[321255110,1712028776378,1260.76547992,0.00031646,2]
[321255111,1712028889256,23739.23452008,0.00031708,2]
[321255112,1712028982784,707.24351822,0.00030997,2]
[321255113,1712029011111,642.848599,0.0003162,120]
[321255114,1712029011400,642.848599,0.00036891,120]
[321255115,1712029051040,155.14366973,0.00030997,4]
[321255116,1712029056342,-165.33466698,0.00032546,6]
[321255117,1712029097410,-1929.76592721,0.00031705,4]
[321255118,1712029097436,-364.50387808,0.00031706,4]
[321255119,1712029097459,-5290.96743116,0.00031707,4]
[321255120,1712029097480,-324.41844914,0.00032644,4]
[321255121,1712029097504,-29838.96884908,0.00032646,4]
[321255122,1712029097527,-2584.06807675,0.00033092,4]
[321255123,1712029097550,-585.98784419,0.00033092,4]
[321255124,1712029097573,-301.02504118,0.00033092,4]
[321255125,1712029097597,-803.19662121,0.00033092,4]
[321255126,1712029097619,-287.55652994,0.00033092,4]
[321255127,1712029097642,-4282.31187595,0.00033093,4]
[321255129,1712029100698,364.50387808,0.00031704,4]
[321255130,1712029123119,20299.97065314,0.00031704,4]
[321255131,1712029191538,2806.99782297,0.00031606,4]
[321255132,1712029193382,4342.7621844,0.00031606,4]
[321255133,1712029204984,854.85470831,0.00031605,4]
[321255134,1712029205022,701.41535698,0.00031605,4]
[321255135,1712029228147,193.31124943,0.00031507,6]
[321255136,1712029229443,7147.43473767,0.00031606,4]
[321255137,1712029231676,439.10339985,0.00031605,4]
[321255138,1712029233165,193.31124943,0.00031608,6]
[321255139,1712029234926,242.71043712,0.00031605,4]
[321255140,1712029234973,703.53359432,0.00031605,4]
[321255141,1712029240988,1517.74333101,0.00031606,4]
[321255142,1712029244563,-187.85775368,0.00031606,2]
[321255143,1712029244589,-1165.75148064,0.00031607,2]
[321255144,1712029244615,-1160.76547992,0.00031708,2]
[321255145,1712029284557,471.49567881,0.00030547,2]
[321255146,1712029292269,304.2987002,0.00031506,7]
[321255150,1712029542150,439.10339985,0.00032982,4]
[321255152,1712029544250,321.424299,0.00033066,120]
[321255153,1712029554597,2588.68185367,0.00032982,4]
[321255154,1712029554633,1517.74333101,0.00032982,4]
[321255155,1712029581607,275.77940943,0.00032982,4]
[321255156,1712029586000,364.33045254,0.00030882,2]
[321255157,1712029624028,1517.74333101,0.00032982,4]
[321255418,1712029840278,-300.28758636,0.00032983,2]
[321255439,1712029848223,-0.01694572,0.00032983,2]
[321255440,1712029848236,-389.59287272,0.00032983,2]
[321255441,1712029848247,-1013.30889899,0.00033248,4]
[321255442,1712029848256,-400.0,0.00033375,2]
[321255443,1712029848265,-400.0,0.00033375,2]
[321255444,1712029848275,-2588.68185367,0.00033376,4]
[321255445,1712029848284,-275.67262286,0.00033376,4]
[321255446,1712029848301,-216.12529084,0.00033376,4]
[321255447,1712029848310,-501.6579087,0.00033377,4]
[321255448,1712029848320,-7574.66055223,0.00033378,2]
[321255473,1712029889810,377.17955358,0.00031276,2]
[321255474,1712029891179,5166.09455812,0.00032982,4]
[321255475,1712029903825,155.53842799,0.00034998,120]
[321255476,1712029907923,1274.55783301,0.00037741,30]
[321255477,1712029907951,3744.0,0.00037741,30]
[321255478,1712029970353,12791.2848238,0.00032193,2]
[321255481,1712030001507,354.70177879,0.00033043,7]
[321255483,1712030006716,372.22309348,0.00033192,120]
[321255485,1712030010000,546.64759302,0.00033043,4]
[321255486,1712030012561,844.60191311,0.00033043,4]
[321255490,1712030023280,44.18100519,0.00033043,4]
[321255492,1712030027190,155.01395126,0.00032193,4]
[321255493,1712030027732,8258.31920496,0.00032193,4]
[321255496,1712030037531,68.00162081,0.0003219,2]
[321255497,1712030037557,1934.17648599,0.0003219,2]
[321255499,1712030041155,220.33041861,0.00032193,4]
[321255500,1712030079303,169.731808,0.0003188,2]
[321255507,1712030102486,783.46802752,0.00032123,120]
[321255508,1712030102511,940.98566248,0.00032123,120]
[321255511,1712030142954,237.607833,0.00032088,2]
[321255524,1712030155333,200.0,0.00032073,2]
[321255526,1712030183655,151.01359122,0.00031887,4]
[321255527,1712030183719,151.01359122,0.0003125,7]
[321255528,1712030183793,151.01359122,0.00030625,30]
[321255529,1712030183862,151.01359122,0.00030012,120]
[321255531,1712030191192,534.88801606,0.00031278,2]
[321255533,1712030220974,14.32107576,0.00032436,6]
[321255534,1712030220998,165.33466698,0.00032436,6]
[321255535,1712030221020,13.65550669,0.00032436,6]
[321255536,1712030233480,190.9572571,0.00031987,2]
[321255538,1712030312683,754.12986417,0.00032433,2]
[321255539,1712030332296,-923.89313196,0.00032524,4]
[321255540,1712030332324,-289.26252666,0.00032525,4]
[321255541,1712030332351,-379.88387502,0.00032525,4]
[321255542,1712030332379,-155.01395126,0.00032525,4]
[321255543,1712030332407,-2501.58625183,0.00032525,4]
[321255544,1712030332434,-155.01395126,0.00032526,4]
[321255545,1712030332461,-754.46501315,0.00032526,4]
[321255546,1712030332488,-155.01395126,0.00032526,4]
[321255547,1712030332516,-378.5457621,0.00032527,4]
[321255548,1712030332543,-2109.94118566,0.00032527,2]
[321255549,1712030332571,-3458.39578796,0.00032528,4]
[321255550,1712030332599,-7753.26037368,0.00032528,4]
[321255551,1712030332625,-1057.80208185,0.00032529,4]
[321255552,1712030332653,-3507.95965165,0.00032529,4]
[321255553,1712030332683,-212.53232206,0.00032529,4]
[321255554,1712030332714,-400.0,0.0003253,2]
[321255555,1712030332742,-400.0,0.0003253,2]
[321255556,1712030332770,-854.85470831,0.0003253,4]
[321255557,1712030332799,-151.01359122,0.00032538,2]
[321255558,1712030332826,-158.63245547,0.00032837,2]
[321255559,1712030332853,-1152.85928992,0.00032838,2]
[321255560,1712030332945,-400.0,0.00032926,3]
[321255561,1712030334478,155.01395126,0.00032523,4]
[321255562,1712030376595,162.35798589,0.00033,4]
[321255563,1712030380320,566.4751979,0.0003243,2]
[321255564,1712030398024,24900.0,0.00032196,2]
[321255570,1712030492452,356.59201071,0.00031278,2]
[321255572,1712030554599,172.756235,0.00031821,2]
[321255573,1712030599249,5188.1057495,0.00032058,2]
[321255574,1712030606671,1318.061584,0.0003207,2]
[321255575,1712030623178,151.01208097,0.00032581,4]
[321255576,1712030623240,151.01208097,0.00031929,7]
[321255577,1712030623300,151.01208097,0.00031291,30]
[321255579,1712030653363,994.3943049,0.00032051,2]
[321255580,1712030666709,338.25,0.00033017,58]
[321255581,1712030698068,1293.340267,0.00032063,120]
[321255582,1712030699131,250.0,0.00032063,2]
[321255587,1712030789612,444.97129573,0.00033,4]
[321255588,1712030793643,288.0372015,0.00030737,2]
[321255589,1712030797565,754.46501315,0.00033,4]
[321255592,1712030807280,379.88387502,0.00033,4]
[321255593,1712030807776,2259.23050017,0.00032917,2]
[321255595,1712030812233,1050.96728107,0.00033,4]
[321255598,1712030814673,258.75475964,0.00033,4]
[321255599,1712030817929,4985.65295938,0.00033,4]
[321255600,1712030818057,289.26252666,0.00033,4]
[321255601,1712030820703,400.0,0.00033,2]
[321255602,1712030821577,400.0,0.00033,2]
[321255604,1712030830085,1057.80208185,0.00033,4]
[321255605,1712030830185,3949.03845978,0.00033,4]
[321255621,1712030867007,20607.16472585,0.0003209,2]
[321255622,1712030901394,3472.25,0.000352,22]
[321255776,1712031032232,-378.5457621,0.00032085,4]
[321255777,1712031032242,-776.11840323,0.00032086,4]
[321255778,1712031032308,-1534.04824333,0.00032086,4]
[321255779,1712031032319,-490.5000166,0.00032086,4]
[321255780,1712031032331,-657.7291248,0.00032086,4]
[321255781,1712031032340,-5009.06120089,0.00032087,4]
[321255782,1712031032349,-400.0,0.00032088,2]
[321255783,1712031032358,-400.0,0.00032089,3]
[321255784,1712031032367,-400.0,0.00032089,2]
[321255785,1712031032376,-691.35234271,0.0003209,2]
[321255802,1712031043433,-3601.48293144,0.0003209,2]
[321255803,1712031043443,-575.43740681,0.00033025,2]
[321255804,1712031043452,-1353.49736476,0.00033042,4]
[321255805,1712031043462,-164.59432849,0.00033044,2]
[321255806,1712031043536,-163.89133784,0.0003309,6]
[321255807,1712031043547,-1443.84784056,0.0003309,2]
[321255808,1712031043556,-361.0,0.00033092,2]
[321255809,1712031043566,-2473.11739049,0.00033092,2]
[321255810,1712031043575,-7879.0,0.0003319,5]
[321255811,1712031043584,-295.62283269,0.00033191,7]
[321255812,1712031043594,-500.0,0.00033191,7]
[321255813,1712031043603,-500.0,0.00033191,7]
[321255814,1712031043612,-177.45246945,0.00033191,7]
[321255815,1712031043621,-6086.59026937,0.00033191,4]
[321255816,1712031043630,-974.052183,0.00033192,2]
[321255817,1712031043640,-974.052183,0.00033192,2]
[321255818,1712031043650,-151.0,0.00033192,2]
[321255819,1712031043659,-461.939813,0.00033192,2]
[321255820,1712031043669,-461.939813,0.00033192,2]
[321255821,1712031043680,-461.939813,0.00033192,2]
[321255822,1712031043689,-461.939813,0.00033192,2]
[321255823,1712031043699,-151.517114,0.00033192,2]
[321255824,1712031043709,-151.0,0.00033192,2]
[321255825,1712031043718,-151.0,0.00033192,2]
[321255826,1712031043739,-151.0,0.00033192,2]
[321255827,1712031043748,-151.0,0.00033192,2]
[321255828,1712031043757,-516.900647,0.00033192,2]
[321255829,1712031043768,-516.900647,0.00033192,2]
[321255830,1712031043777,-516.900647,0.00033192,2]
[321255831,1712031043786,-516.900647,0.00033192,2]
[321255832,1712031043795,-151.0,0.00033192,2]
[321255833,1712031043804,-151.0,0.00033192,2]
[321255834,1712031043815,-222.378871,0.00033192,2]
[321255835,1712031043825,-2697.193651,0.00033192,2]
[321255836,1712031043836,-2697.193651,0.00033192,2]
[321255837,1712031043846,-2697.193651,0.00033192,2]
[321255838,1712031043858,-2697.193651,0.00033192,2]
[321255839,1712031043868,-151.0,0.00033192,2]
[321255840,1712031043877,-151.0,0.00033192,2]
[321255841,1712031043886,-318.771507,0.00033192,2]
[321255842,1712031043895,-318.771507,0.00033192,2]
[321255843,1712031043905,-318.771507,0.00033192,2]
[321255844,1712031043914,-318.771507,0.00033192,2]
[321255845,1712031043923,-155.85458783,0.00033192,4]
[321255846,1712031043932,-276.1036204,0.00033192,4]
[321255847,1712031043943,-1467.3217523,0.00033192,4]
[321255848,1712031043954,-419.4372247,0.00033192,7]
[321255849,1712031043964,-363.20833943,0.00033192,4]
[321255850,1712031043974,-155.92882395,0.00033193,4]
[321255851,1712031043983,-332.34881082,0.00033193,4]
[321255852,1712031043993,-151.01208097,0.00033246,2]
[321255853,1712031044002,-158.14924931,0.00033248,4]
[321255854,1712031044012,-384.76195862,0.00033274,2]
[321255855,1712031044021,-188.119426,0.00033373,2]
[321255856,1712031044030,-2801.52534649,0.00033374,4]
[321255857,1712031044039,-151.0,0.00033374,2]
[321255858,1712031044049,-151.0,0.00033374,2]
[321255859,1712031044059,-516.900647,0.00033374,2]
[321255860,1712031044068,-516.900647,0.00033374,2]
[321255861,1712031044077,-181.314263,0.00033374,2]
[321255862,1712031044086,-318.771507,0.00033374,2]
[321255863,1712031044095,-318.771507,0.00033374,2]
[321255864,1712031044104,-155.84094293,0.00033377,4]
[321255865,1712031044114,-2473.11739049,0.00033544,2]
[321255866,1712031044123,-156.863164,0.00033544,2]
[321255867,1712031044133,-2697.193651,0.00033544,2]
[321255868,1712031044143,-2697.193651,0.00033544,2]
[321255869,1712031044153,-2473.11739049,0.00033996,2]
[321255870,1712031044162,-318.771507,0.00033996,2]
[321255871,1712031044171,-318.771507,0.00033996,2]
[321255872,1712031044180,-461.939813,0.00034,2]
[321255873,1712031044190,-461.939813,0.00034,2]
[321255874,1712031044199,-463.70000041,0.00034,4]
[321255875,1712031044208,-974.052183,0.00034086,2]
[321255876,1712031044217,-974.052183,0.00034086,2]
[321255877,1712031044226,-461.939813,0.00034086,2]
[321255878,1712031044235,-461.939813,0.00034086,2]
[321255879,1712031044245,-151.0,0.00034086,2]
[321255880,1712031044254,-155.588823,0.00034086,2]
[321255881,1712031044265,-516.900647,0.00034086,2]
[321255882,1712031044273,-516.900647,0.00034086,2]
[321255883,1712031044282,-2697.193651,0.00034086,2]
[321255884,1712031044291,-2697.193651,0.00034086,2]
[321255885,1712031044300,-318.771507,0.00034086,2]
[321255886,1712031044310,-318.771507,0.00034086,2]
[321255887,1712031044319,-384.76195862,0.00034087,2]
[321255888,1712031044328,-381.34553329,0.00034297,4]
[321255889,1712031044337,-2697.193651,0.00034447,2]
[321255890,1712031044346,-2697.193651,0.00034447,2]
[321255891,1712031044355,-2473.11739049,0.00034447,2]
[321255892,1712031044364,-560.0,0.00034509,2]
[321255893,1712031044373,-560.0,0.0003451,2]
[321255894,1712031044382,-693.00710774,0.00034518,4]
[321255895,1712031044391,-170.76429043,0.00034518,4]
[321255896,1712031044452,-654.360679,0.00034518,2]
[321255897,1712031044462,-654.360679,0.00034518,2]
[321255898,1712031044471,-151.0,0.00034518,2]
[321255899,1712031044481,-318.771507,0.00034518,2]
[321255900,1712031044489,-318.771507,0.00034518,2]
[321255901,1712031044499,-654.360679,0.00034898,2]
[321255902,1712031044508,-654.360679,0.00034898,2]
[321255903,1712031044518,-974.052183,0.00034898,2]
[321255904,1712031044528,-974.052183,0.00034898,2]
[321255905,1712031044537,-461.939813,0.00034898,2]
[321255906,1712031044546,-461.939813,0.00034898,2]
[321255907,1712031044555,-151.0,0.00034898,2]
[321255908,1712031044564,-151.0,0.00034898,2]
[321255909,1712031044573,-516.900647,0.00034898,2]
[321255910,1712031044583,-516.900647,0.00034898,2]
[321255911,1712031044592,-516.900647,0.00034898,2]
[321255912,1712031044601,-516.900647,0.00034898,2]
[321255913,1712031044610,-2697.193651,0.00034898,2]
[321255914,1712031044620,-2206.75734881,0.00034898,2]
[321255915,1712031045039,-490.43630219,0.00034898,2]
[321255916,1712031045048,-318.771507,0.00034898,2]
[321255917,1712031045058,-318.771507,0.00034898,2]
[321255918,1712031045067,-704.67979743,0.00034899,2]
[321255919,1712031045153,-1768.43759306,0.00034899,2]
[321255920,1712031045162,-493.64640694,0.00034899,2]
[321255921,1712031045173,-2203.54724406,0.00034899,2]
[321255922,1712031045182,-278.03675594,0.00034899,2]
[321255956,1712031046244,-164.59432849,0.00033044,2]
[321255958,1712031046253,-186.51042986,0.00034899,2]
[321255963,1712031046312,-2232.6464652,0.00034899,2]
[321255965,1712031046321,-318.771507,0.00034899,2]
[321255966,1712031046331,-318.771507,0.00034899,2]
[321255968,1712031046340,-384.76195862,0.000349,2]
[321255969,1712031046350,-4478.4554194,0.00034996,4]
[321255970,1712031046360,-3458.39578796,0.00034996,4]
[321255971,1712031046369,-508.19794967,0.00034997,4]
[321255972,1712031046379,-185.84798271,0.00034997,4]
[321255973,1712031046389,-1054.33040119,0.00034997,4]
[321255974,1712031046398,-288.13633296,0.00034997,4]
[321255975,1712031046408,-259.99245684,0.00034997,4]
[321255977,1712031046420,-981.02750832,0.00034997,4]
[321255978,1712031046445,-318.771507,0.00034997,2]
[321255979,1712031046462,-318.771507,0.00034997,2]
[321255980,1712031046482,-158.43171489,0.00034998,4]
[321255981,1712031046501,-204.94437741,0.00034998,4]
[321255982,1712031046518,-267.49079641,0.00034998,4]
[321255983,1712031046536,-2800.02094822,0.00034998,4]
[321255984,1712031046554,-483.79141428,0.00034998,4]
[321255985,1712031046571,-605.82865444,0.00034998,4]
[321255986,1712031046589,-363.31345575,0.00034998,4]
[321255987,1712031046605,-195.04992562,0.00034998,2]
[321255988,1712031046627,-348.44646625,0.00034998,4]
[321255989,1712031046646,-724.97341925,0.00034998,4]
[321255990,1712031046660,-342.75576639,0.00034998,4]
[321255991,1712031046676,-829.35008266,0.00034998,4]
[321255992,1712031046694,-857.83572282,0.00034998,2]
[321255993,1712031046707,-1452.64546495,0.00034998,4]
[321255994,1712031046723,-2498.01681967,0.00034998,4]
[321255995,1712031046738,-216.31310704,0.00034998,4]
[321255996,1712031046754,-295.68157615,0.00034998,4]
[321255997,1712031046772,-806.17891956,0.00034998,4]
[321255998,1712031046786,-155.27390637,0.00034998,4]
[321255999,1712031046800,-305.31148423,0.00034998,4]
[321256000,1712031046815,-151.0,0.00034998,2]
[321256001,1712031046829,-155.741594,0.00034998,2]
[321256002,1712031046843,-2587.86848535,0.00034998,4]
[321256003,1712031046858,-151.0,0.00034998,2]
[321256004,1712031046875,-151.0,0.00034998,2]
[321256005,1712031046890,-654.360679,0.00034998,2]
[321256006,1712031046904,-654.360679,0.00034998,2]
[321256007,1712031046919,-974.052183,0.00034998,2]
[321256008,1712031046933,-974.052183,0.00034998,2]
[321256009,1712031046948,-974.052183,0.00034998,2]
[321256010,1712031046963,-974.052183,0.00034998,2]
[321256011,1712031046978,-461.939813,0.00034998,2]
[321256012,1712031046992,-461.939813,0.00034998,2]
[321256013,1712031047006,-461.939813,0.00034998,2]
[321256014,1712031047023,-461.939813,0.00034998,2]
[321256015,1712031047034,-461.939813,0.00034998,2]
[321256016,1712031047044,-461.939813,0.00034998,2]
[321256017,1712031047149,-461.939813,0.00034998,2]
[321256018,1712031047160,-461.939813,0.00034998,2]
[321256019,1712031047171,-461.939813,0.00034998,2]
[321256020,1712031047180,-461.939821,0.00034998,2]